fUSD/lending_fUSD_20240426
["ID","MTS","AMOUNT","RATE_DAILY","PERIOD"]
[323621330,1714141840990,-634.44,0.00011857,2]
[323621331,1714141841000,-500.0,0.00011857,2]
[323621332,1714141841009,-500.0,0.00011857,2]
[323621333,1714141841023,-346.26841891,0.00011857,2]
[323621334,1714141841032,-500.0,0.00011857,2]
[323621335,1714141841042,-767.92,0.00011857,2]
[323621336,1714141841053,-500.0,0.00011857,2]
[323621337,1714141841063,-500.6726765,0.00011857,2]
[323621338,1714141841073,-377.88315702,0.00011857,2]
[323621339,1714141841083,-500.0,0.00011857,2]
[323621340,1714141841093,-500.0,0.00011857,2]
[323621341,1714141841103,-500.0,0.00011857,2]
[323621342,1714141841113,-13286.3,0.00011857,2]
[323621343,1714141841123,-500.0,0.00011857,2]
[323621344,1714141841132,-500.0,0.00011857,2]
[323621345,1714141841142,-500.0,0.00011857,2]
[323621346,1714141841152,-500.0,0.00011857,2]
[323621347,1714141841162,-502.46286675,0.00011857,2]
[323621348,1714141841173,-500.70816938,0.00011857,2]
[323621349,1714141841183,-500.0,0.00011858,2]
[323621350,1714141841192,-500.0,0.00011858,2]
[323621351,1714141841202,-500.0,0.00011858,2]
[323621352,1714141841212,-513.8,0.00011858,2]
[323621353,1714141841222,-500.0,0.00011858,2]
[323621354,1714141841232,-500.0,0.00011858,2]
[323621355,1714141841242,-439.35,0.00011858,2]
[323621356,1714141841251,-500.0,0.00011858,2]
[323621357,1714141841261,-500.0,0.00011858,2]
[323621358,1714141841271,-500.0,0.00011858,2]
[323621359,1714141841280,-500.0,0.00011858,2]
[323621360,1714141841290,-500.0,0.00011858,2]
[323621361,1714141841303,-500.0,0.00011858,2]
[323621362,1714141841312,-500.0,0.00011858,2]
[323621363,1714141841324,-500.0,0.00011858,2]
[323621364,1714141841334,-500.0,0.00011858,2]
[323621365,1714141841343,-500.0,0.00011858,2]
[323621366,1714141841353,-500.0,0.00011858,2]
[323621367,1714141841362,-500.0,0.00011858,2]
[323621368,1714141841372,-500.0,0.00011858,2]
[323621369,1714141841381,-500.0,0.00011858,2]
[323621370,1714141841390,-500.0,0.00011858,2]
[323621371,1714141841400,-500.0,0.00011858,2]
[323621372,1714141841409,-500.0,0.00011858,2]
[323621373,1714141841419,-500.0,0.00011858,2]
[323621374,1714141841429,-500.0,0.00011858,2]
[323621375,1714141841438,-500.0,0.00011858,2]
[323621376,1714141841448,-647.59,0.00011858,2]
[323621377,1714141841457,-500.0,0.00011858,2]
[323621378,1714141841466,-500.0,0.00011858,2]
[323621379,1714141841476,-500.0,0.00011858,2]
[323621380,1714141841486,-500.0,0.00011858,2]
[323621381,1714141841495,-500.0,0.00011858,2]
[323621382,1714141841505,-500.0,0.00011858,2]
[323621383,1714141841514,-500.0,0.00011858,2]
[323621384,1714141841523,-834.51,0.00011858,2]
[323621385,1714141841533,-500.0,0.00011858,2]
[323621386,1714141841543,-500.0,0.00011858,2]
[323621387,1714141841556,-624.70803636,0.00011858,2]
[323621388,1714141841566,-500.0,0.00011858,2]
[323621389,1714141841576,-637.77,0.00011858,2]
[323621390,1714141841585,-500.0,0.00011858,2]
[323621391,1714141841595,-500.0,0.00011858,2]
[323621392,1714141841605,-500.0,0.00011858,2]
[323621393,1714141841614,-500.0,0.00011858,2]
[323621394,1714141841623,-956.39,0.00011858,2]
[323621395,1714141841632,-500.0,0.00011858,2]
[323621396,1714141841642,-500.0,0.00011858,2]
[323621397,1714141841654,-500.0,0.00011858,2]
[323621398,1714141841663,-500.0,0.00011858,2]
[323621399,1714141841674,-500.0,0.00011858,2]
[323621400,1714141841683,-500.0,0.00011858,2]
[323621401,1714141841692,-500.0,0.00011858,2]
[323621402,1714141841701,-504.0,0.00011859,2]
[323621403,1714141841711,-89381.381929,0.00011859,2]
[323621404,1714141841728,-15459.00894195,0.00011859,2]
[323621405,1714141841738,-151.0,0.00011859,2]
[323621406,1714141841748,-2006.163003,0.00011859,2]
[323621407,1714141841762,-2006.163003,0.00011859,2]
[323621408,1714141841771,-500.0,0.00011867,2]
[323621409,1714141841781,-500.0,0.00011867,2]
[323621410,1714141841790,-500.0,0.00011867,2]
[323621411,1714141841803,-500.0,0.00011867,2]
[323621412,1714141841813,-500.0,0.00011867,2]
[323621413,1714141841822,-503.69405743,0.00011867,2]
[323621414,1714141841831,-501.82480319,0.00011867,2]
[323621415,1714141841843,-540.53311289,0.00011867,2]
[323621416,1714141841852,-613.72,0.00011867,2]
[323621417,1714141841862,-500.0,0.00011867,2]
[323621418,1714141841872,-500.0,0.00011867,2]
[323621419,1714141841881,-500.0,0.00011867,2]
[323621420,1714141841891,-500.0,0.00011867,2]
[323621421,1714141841901,-500.0,0.00011867,2]
[323621422,1714141841910,-500.0,0.00011867,2]
[323621423,1714141841919,-505.92339226,0.00011867,2]
[323621424,1714141841930,-500.0,0.00011867,2]
[323621425,1714141841939,-500.0,0.00011867,2]
[323621426,1714141841949,-551.92,0.00011867,2]
[323621427,1714141841958,-500.0,0.00011867,2]
[323621428,1714141841967,-500.0,0.00011867,2]
[323621429,1714141841977,-809.38,0.00011867,2]
[323621430,1714141841986,-500.0,0.00011867,2]
[323621431,1714141841995,-500.0,0.00011867,2]
[323621432,1714141842005,-500.0,0.00011867,2]
[323621433,1714141842014,-500.0,0.00011867,2]
[323621434,1714141842023,-500.0,0.00011867,2]
[323621435,1714141842032,-500.0,0.00011867,2]
[323621436,1714141842042,-500.0,0.00011867,2]
[323621437,1714141842053,-500.0,0.00011867,2]
[323621438,1714141842062,-500.0,0.00011867,2]
[323621439,1714141842072,-500.0,0.00011867,2]
[323621440,1714141842081,-500.0,0.00011867,2]
[323621441,1714141842090,-500.0,0.00011867,2]
[323621442,1714141842100,-500.0,0.00011867,2]
[323621443,1714141842109,-500.0,0.00011867,2]
[323621444,1714141842118,-500.0,0.00011867,2]
[323621445,1714141842128,-500.0,0.00011867,2]
[323621446,1714141842137,-500.0,0.00011867,2]
[323621447,1714141842147,-500.0,0.00011867,2]
[323621448,1714141842156,-500.0,0.00011867,2]
[323621449,1714141842165,-880.24,0.00011867,2]
[323621450,1714141842174,-500.0,0.00011867,2]
[323621451,1714141842183,-500.0,0.00011867,2]
[323621452,1714141842192,-500.0,0.00011867,2]
[323621453,1714141842202,-500.0,0.00011867,2]
[323621454,1714141842211,-500.0,0.00011867,2]
[323621455,1714141842220,-500.0,0.00011867,2]
[323621456,1714141842230,-500.0,0.00011867,2]
[323621457,1714141842239,-500.0,0.00011867,2]
[323621458,1714141842248,-500.0,0.00011867,2]
[323621459,1714141842257,-500.0,0.00011867,2]
[323621460,1714141842266,-504.47636066,0.00011867,2]
[323621461,1714141842276,-500.0,0.00011867,2]
[323621462,1714141842287,-500.0,0.00011867,2]
[323621463,1714141842296,-956.68,0.00011867,2]
[323621464,1714141842307,-500.0,0.00011867,2]
[323621465,1714141842316,-500.0,0.00011867,2]
[323621466,1714141842326,-500.0,0.00011867,2]
[323621467,1714141842335,-500.0,0.00011867,2]
[323621468,1714141842344,-500.0,0.00011867,2]
[323621469,1714141842354,-500.0,0.00011867,2]
[323621470,1714141842363,-500.0,0.00011867,2]
[323621471,1714141842375,-500.0,0.00011867,2]
[323621472,1714141842385,-724.34,0.00011867,2]
[323621473,1714141842394,-500.0,0.00011867,2]
[323621474,1714141842403,-812.17,0.00011867,2]
[323621475,1714141842412,-500.0,0.00011867,2]
[323621476,1714141842421,-364.52711347,0.00011867,2]
[323621477,1714141842430,-500.0,0.00011867,2]
[323621478,1714141842439,-505.93,0.00011867,2]
[323621479,1714141842449,-500.0,0.00011867,2]
[323621480,1714141842457,-500.0,0.00011867,2]
[323621481,1714141842466,-500.0,0.00011867,2]
[323621483,1714141842475,-500.0,0.00011867,2]
[323621485,1714141842484,-500.0,0.00011867,2]
[323621486,1714141842493,-500.0,0.00011867,2]
[323621487,1714141842502,-531.84,0.00011867,2]
[323621488,1714141842512,-500.0,0.00011867,2]
[323621489,1714141842521,-500.0,0.00011867,2]
[323621490,1714141842530,-500.0,0.00011867,2]
[323621491,1714141842539,-500.0,0.00011867,2]
[323621492,1714141842549,-500.0,0.00011867,2]
[323621493,1714141842560,-500.0,0.00011867,2]
[323621495,1714141842569,-500.0,0.00011867,2]
[323621497,1714141842578,-500.0,0.00011867,2]
[323621499,1714141842587,-500.0,0.00011867,2]
[323621501,1714141842596,-434.0195027,0.00011867,2]
[323621502,1714141842606,-523.23,0.00011867,2]
[323621504,1714141842615,-500.0,0.00011867,2]
[323621506,1714141842625,-500.0,0.00011867,2]
[323621508,1714141842634,-393.12865366,0.00011867,2]
[323621510,1714141842643,-500.0,0.00011867,2]
[323621511,1714141842652,-500.0,0.00011867,2]
[323621512,1714141842662,-500.0,0.00011867,2]
[323621513,1714141842671,-500.0,0.00011867,2]
[323621514,1714141842680,-500.0,0.00011867,2]
[323621515,1714141842689,-500.0,0.00011867,2]
[323621517,1714141842898,-503.07289915,0.00011867,2]
[323621518,1714141842907,-500.0,0.00011867,2]
[323621519,1714141842916,-500.0,0.00011867,2]
[323621520,1714141842926,-500.0,0.00011867,2]
[323621521,1714141842935,-500.0,0.00011867,2]
[323621522,1714141842944,-500.0,0.00011867,2]
[323621523,1714141842953,-500.0,0.00011867,2]
[323621524,1714141842962,-500.0,0.00011867,2]
[323621525,1714141842971,-500.0,0.00011867,2]
[323621526,1714141842981,-683.35,0.00011867,2]
[323621527,1714141842990,-503.90497579,0.00011867,2]
[323621528,1714141842999,-500.0,0.00011867,2]
[323621529,1714141843009,-500.0,0.00011867,2]
[323621530,1714141843019,-500.0,0.00011867,2]
[323621531,1714141843028,-500.0,0.00011867,2]
[323621532,1714141843037,-500.0,0.00011867,2]
[323621533,1714141843046,-500.0,0.00011867,2]
[323621534,1714141843057,-500.0,0.00011867,2]
[323621535,1714141843066,-500.0,0.00011867,2]
[323621536,1714141843075,-500.0,0.00011867,2]
[323621537,1714141843084,-500.0,0.00011867,2]
[323621538,1714141843094,-500.0,0.00011867,2]
[323621539,1714141843103,-500.0,0.00011867,2]
[323621540,1714141843112,-500.0,0.00011867,2]
[323621541,1714141843121,-1007.55,0.00011867,2]
[323621543,1714141843130,-500.0,0.00011867,2]
[323621545,1714141843140,-1094.99,0.00011867,2]
[323621546,1714141843149,-500.0,0.00011867,2]
[323621547,1714141843158,-500.0,0.00011867,2]
[323621548,1714141843167,-500.0,0.00011867,2]
[323621549,1714141843176,-526.69558846,0.00011867,2]
[323621551,1714141843185,-500.0,0.00011867,2]
[323621552,1714141843195,-500.0,0.00011867,2]
[323621553,1714141843204,-500.0,0.00011867,2]
[323621554,1714141843213,-500.0,0.00011867,2]
[323621555,1714141843223,-500.0,0.00011867,2]
[323621556,1714141843232,-500.0,0.00011867,2]
[323621557,1714141843241,-812.04,0.00011867,2]
[323621558,1714141843250,-500.0,0.00011867,2]
[323621559,1714141843260,-500.0,0.00011867,2]
[323621561,1714141843269,-500.0,0.00011867,2]
[323621562,1714141843278,-504.22086124,0.00011867,2]
[323621563,1714141843287,-500.0,0.00011867,2]
[323621564,1714141843296,-500.0,0.00011867,2]
[323621565,1714141843306,-374.8140291,0.00011867,2]
[323621566,1714141843315,-500.0,0.00011867,2]
[323621567,1714141843325,-500.0,0.00011867,2]
[323621569,1714141843334,-500.0,0.00011867,2]
[323621571,1714141843344,-500.0,0.00011867,2]
[323621573,1714141843353,-500.0,0.00011867,2]
[323621575,1714141843363,-685.2,0.00011867,2]
[323621577,1714141843372,-500.0,0.00011867,2]
[323621578,1714141843381,-500.0,0.00011867,2]
[323621579,1714141843390,-500.0,0.00011867,2]
[323621580,1714141843400,-500.0,0.00011867,2]
[323621581,1714141843410,-500.0,0.00011867,2]
[323621582,1714141843420,-500.0,0.00011867,2]
[323621583,1714141843430,-500.0,0.00011867,2]
[323621584,1714141843439,-500.0,0.00011867,2]
[323621585,1714141843449,-1033.93,0.00011867,2]
[323621586,1714141843458,-500.0,0.00011867,2]
[323621587,1714141843468,-509.43,0.00011867,2]
[323621588,1714141843477,-500.0,0.00011867,2]
[323621589,1714141843487,-762.66,0.00011867,2]
[323621590,1714141843495,-500.0,0.00011867,2]
[323621591,1714141843505,-500.0,0.00011867,2]
[323621592,1714141843513,-500.0,0.00011867,2]
[323621593,1714141843523,-500.0,0.00011867,2]
[323621594,1714141843532,-500.0,0.00011867,2]
[323621595,1714141843542,-500.0,0.00011867,2]
[323621596,1714141843551,-500.0,0.00011867,2]
[323621597,1714141843561,-819.22,0.00011867,2]
[323621598,1714141843571,-999.61,0.00011867,2]
[323621599,1714141843580,-500.0,0.00011867,2]
[323621600,1714141843590,-500.0,0.00011867,2]
[323621601,1714141843599,-500.0,0.00011867,2]
[323621602,1714141843608,-500.0,0.00011867,2]
[323621603,1714141843618,-716.05,0.00011867,2]
[323621604,1714141843627,-621.04,0.00011867,2]
[323621605,1714141843636,-500.0,0.00011867,2]
[323621606,1714141843645,-500.0,0.00011867,2]
[323621607,1714141843654,-500.0,0.00011867,2]
[323621608,1714141843664,-500.0,0.00011867,2]
[323621609,1714141843673,-500.0,0.00011867,2]
[323621610,1714141843683,-500.0,0.00011867,2]
[323621611,1714141843692,-503.3166131,0.00011867,2]
[323621612,1714141843701,-500.0,0.00011867,2]
[323621613,1714141843711,-500.0,0.00011867,2]
[323621614,1714141843722,-827.15,0.00011867,2]
[323621615,1714141843733,-500.0,0.00011867,2]
[323621616,1714141843743,-500.0,0.00011867,2]
[323621617,1714141843753,-500.0,0.00011867,2]
[323621618,1714141843766,-500.0,0.00011867,2]
[323621619,1714141843777,-500.0,0.00011867,2]
[323621620,1714141843786,-500.0,0.00011867,2]
[323621621,1714141843795,-488.84509757,0.00011867,2]
[323621622,1714141843807,-500.0,0.00011867,2]
[323621623,1714141843816,-500.0,0.00011867,2]
[323621624,1714141843824,-557.68,0.00011867,2]
[323621625,1714141843834,-500.0,0.00011867,2]
[323621626,1714141843844,-500.0,0.00011867,2]
[323621627,1714141843853,-500.0,0.00011867,2]
[323621628,1714141843862,-500.0,0.00011867,2]
[323621629,1714141843871,-500.0,0.00011867,2]
[323621630,1714141843880,-500.0,0.00011867,2]
[323621631,1714141843889,-500.0,0.00011867,2]
[323621632,1714141843899,-500.0,0.00011867,2]
[323621633,1714141843908,-500.0,0.00011867,2]
[323621634,1714141843917,-500.0,0.00011867,2]
[323621635,1714141843927,-500.0,0.00011867,2]
[323621636,1714141843936,-500.0,0.00011867,2]
[323621637,1714141843945,-899.51,0.00011867,2]
[323621638,1714141843956,-538.66,0.00011867,2]
[323621639,1714141843965,-500.0,0.00011867,2]
[323621640,1714141843975,-500.0,0.00011867,2]
[323621641,1714141843985,-500.0,0.00011867,2]
[323621642,1714141843994,-500.0,0.00011867,2]
[323621643,1714141844004,-500.0,0.00011867,2]
[323621644,1714141844013,-1004.76,0.00011867,2]
[323621645,1714141844022,-500.0,0.00011867,2]
[323621646,1714141844031,-500.0,0.00011867,2]
[323621647,1714141844040,-516.14,0.00011867,2]
[323621648,1714141844050,-2006.163003,0.00011867,2]
[323621649,1714141844060,-2006.163003,0.00011867,2]
[323621650,1714141844069,-500.0,0.00011867,2]
[323621651,1714141844080,-500.0,0.00011867,2]
[323621652,1714141844089,-506.58292653,0.00011867,2]
[323621653,1714141844100,-504.11729366,0.00011867,2]
[323621654,1714141844110,-500.0,0.00011867,2]
[323621655,1714141844121,-500.0,0.00011867,2]
[323621656,1714141844130,-500.0,0.00011867,2]
[323621657,1714141844141,-500.0,0.00011867,2]
[323621658,1714141844152,-500.0,0.00011867,2]
[323621659,1714141844161,-500.0,0.00011867,2]
[323621660,1714141844171,-500.0,0.00011867,2]
[323621661,1714141844180,-807.73,0.00011867,2]
[323621662,1714141844190,-500.0,0.00011867,2]
[323621663,1714141844199,-500.0,0.00011867,2]
[323621664,1714141844209,-500.0,0.00011867,2]
[323621665,1714141844218,-500.0,0.00011867,2]
[323621666,1714141844227,-500.0,0.00011867,2]
[323621667,1714141844237,-500.0,0.00011867,2]
[323621668,1714141844246,-500.0,0.00011867,2]
[323621669,1714141844255,-500.0,0.00011867,2]
[323621670,1714141844265,-500.0,0.00011867,2]
[323621671,1714141844275,-500.0,0.00011867,2]
[323621672,1714141844284,-500.0,0.00011867,2]
[323621673,1714141844294,-500.0,0.00011867,2]
[323621674,1714141844304,-503.92204158,0.00011867,2]
[323621675,1714141844315,-500.0,0.00011867,2]
[323621676,1714141844325,-972.49054456,0.00011868,2]
[323621677,1714141844334,-2215.83251815,0.00011868,2]
[323621678,1714141844343,-359.52096542,0.00011868,2]
[323621679,1714141844353,-2439.13332892,0.00011868,2]
[323621680,1714141844362,-168.74926631,0.00011868,2]
[323621681,1714141844372,-500.0,0.00011869,2]
[323621682,1714141844381,-500.0,0.00011869,2]
[323621683,1714141844391,-500.0,0.00011869,2]
[323621684,1714141844400,-591.63206587,0.00011869,2]
[323621685,1714141844410,-500.0,0.00011869,2]
[323621686,1714141844419,-500.0,0.00011869,2]
[323621687,1714141844429,-503.41759436,0.00011869,2]
[323621688,1714141844438,-500.0,0.00011869,2]
[323621689,1714141844448,-500.0,0.00011869,2]
[323621690,1714141844458,-500.0,0.00011869,2]
[323621691,1714141844467,-504.03399657,0.00011869,2]
[323621692,1714141844476,-500.0,0.00011869,2]
[323621693,1714141844485,-500.0,0.00011869,2]
[323621694,1714141844495,-500.0,0.00011869,2]
[323621695,1714141844505,-500.0,0.00011869,2]
[323621696,1714141844514,-500.0,0.00011869,2]
[323621697,1714141844524,-500.0,0.00011869,2]
[323621698,1714141844533,-500.0,0.00011869,2]
[323621699,1714141844542,-500.0,0.00011869,2]
[323621700,1714141844552,-500.0,0.00011869,2]
[323621701,1714141844563,-500.0,0.00011869,2]
[323621702,1714141844573,-500.0,0.00011869,2]
[323621703,1714141844582,-76.78966834,0.00011869,2]
[323621704,1714141844615,-505.30361999,0.00011656,2]
[323621705,1714141844624,-423.21033166,0.00011869,2]
[323621706,1714141844633,-500.0,0.00011869,2]
[323621707,1714141844643,-55.11049087,0.00011869,2]
[323621708,1714141844655,-444.88950913,0.00011869,2]
[323621709,1714141844665,-500.0,0.00011869,2]
[323621710,1714141844677,-551.30708598,0.00011869,2]
[323621711,1714141844687,-500.0,0.00011869,2]
[323621712,1714141844697,-500.0,0.00011869,2]
[323621713,1714141844707,-500.0,0.00011869,2]
[323621714,1714141844716,-500.0,0.00011869,2]
[323621715,1714141844726,-220.74371321,0.00011869,2]
[323621716,1714141844735,-500.0,0.00011869,2]
[323621717,1714141844744,-500.0,0.00011869,2]
[323621718,1714141844755,-500.0,0.00011869,2]
[323621719,1714141844766,-319.06478297,0.00011869,2]
[323621720,1714141844776,-487.64284177,0.00011869,2]
[323621721,1714141844785,-500.0,0.00011869,2]
[323621722,1714141844795,-593.07756863,0.00011869,2]
[323621723,1714141844807,-500.0,0.00011869,2]
[323621724,1714141844816,-500.0,0.00011869,2]
[323621725,1714141844826,-207.13006511,0.00011869,2]
[323621726,1714141844838,-500.0,0.00011869,2]
[323621727,1714141844848,-500.0,0.00011869,2]
[323621728,1714141844857,-500.0,0.00011869,2]
[323621729,1714141844869,-500.0,0.00011869,2]
[323621730,1714141844881,-500.0,0.00011869,2]
[323621731,1714141844891,-500.0,0.00011869,2]
[323621732,1714141844901,-535.88760623,0.00011869,2]
[323621733,1714141844910,-500.0,0.00011869,2]
[323621734,1714141844920,-500.0,0.00011869,2]
[323621735,1714141844930,-500.0,0.00011869,2]
[323621736,1714141844941,-500.0,0.00011869,2]
[323621737,1714141844951,-33.71563477,0.00011869,2]
[323621738,1714141844964,-466.28436523,0.00011869,2]
[323621739,1714141844974,-378.44109666,0.00011869,2]
[323621740,1714141844983,-504.25781961,0.00011869,2]
[323621741,1714141844993,-591.38863074,0.00011869,2]
[323621742,1714141845002,-514.48724525,0.00011869,2]
[323621743,1714141845012,-500.0,0.00011869,2]
[323621744,1714141845023,-500.0,0.00011869,2]
[323621745,1714141845033,-501.96672798,0.00011869,2]
[323621746,1714141845042,-500.0,0.00011869,2]
[323621747,1714141845051,-500.0,0.00011869,2]
[323621748,1714141845062,-275.19600973,0.00011869,2]
[323621749,1714141845071,-500.0,0.00011869,2]
[323621750,1714141845080,-500.0,0.00011869,2]
[323621751,1714141845090,-500.0,0.00011869,2]
[323621752,1714141845099,-366.99767048,0.00011869,2]
[323621753,1714141845109,-500.0,0.00011869,2]
[323621754,1714141845119,-500.0,0.00011869,2]
[323621755,1714141845128,-500.0,0.00011869,2]
[323621756,1714141845138,-398.83524561,0.00011869,2]
[323621757,1714141845150,-101.16475439,0.00011869,2]
[323621758,1714141845160,-227.60687317,0.00011869,2]
[323621759,1714141845169,-152.297502,0.00011869,2]
[323621760,1714141845180,-174.75087333,0.00011869,2]
[323621761,1714141845195,-402.92578935,0.00011869,2]
[323621762,1714141845205,-382.99885834,0.00011869,2]
[323621763,1714141845216,-117.00114166,0.00011869,2]
[323621764,1714141845295,-501.47056045,0.00011869,2]
[323621765,1714141845307,-50.95537242,0.00011869,2]
[323621766,1714141845319,-444.11719502,0.00011869,2]
[323621767,1714141845330,-4.92743256,0.00011869,2]
[323621768,1714141845340,-517.88701731,0.00011869,2]
[323621769,1714141845349,-500.0,0.00011869,2]
[323621770,1714141845359,-374.43613673,0.00011869,2]
[323621771,1714141845371,-31.3311083,0.00011869,2]
[323621772,1714141845380,-500.0,0.00011869,2]
[323621773,1714141845390,-500.0,0.00011869,2]
[323621774,1714141845399,-500.0,0.00011869,2]
[323621775,1714141845410,-123.20539824,0.00011869,2]
[323621777,1714141845441,-376.79460176,0.00011869,2]
[323621779,1714141845451,-500.0,0.00011869,2]
[323621781,1714141845461,-500.0,0.00011869,2]
[323621783,1714141845470,-409.63547728,0.00011869,2]
[323621785,1714141845482,-90.36452272,0.00011869,2]
[323621787,1714141845492,-500.0,0.00011869,2]
[323621789,1714141845501,-500.0,0.00011869,2]
[323621791,1714141845511,-500.0,0.00011869,2]
[323621792,1714141845520,-501.1255681,0.00011869,2]
[323621793,1714141845530,-500.0,0.00011869,2]
[323621794,1714141845539,-500.0,0.00011869,2]
[323621795,1714141845548,-128.23025918,0.00011869,2]
[323621796,1714141845562,-371.76974082,0.00011869,2]
[323621797,1714141845571,-419.01064786,0.00011869,2]
[323621798,1714141845582,-83.34647179,0.00011869,2]
[323621799,1714141845592,-503.31770367,0.00011869,2]
[323621800,1714141845601,-500.0,0.00011869,2]
[323621801,1714141845610,-500.0,0.00011869,2]
[323621802,1714141845619,-142.89366106,0.00011869,2]
[323621803,1714141845647,-336.33957885,0.00011656,2]
[323621805,1714141845658,-168.96404114,0.00011656,2]
[323621806,1714141845667,-357.10633894,0.00011869,2]
[323621807,1714141845676,-504.39702051,0.00011869,2]
[323621808,1714141845686,-508.07850548,0.00011869,2]
[323621809,1714141845695,-503.80902002,0.00011869,2]
[323621810,1714141845705,-506.71802472,0.00011869,2]
[323621811,1714141845714,-933.31,0.00011869,2]
[323621812,1714141845723,-500.0,0.00011869,2]
[323621813,1714141845732,-500.0,0.00011869,2]
[323621814,1714141845742,-500.0,0.00011869,2]
[323621815,1714141845752,-500.62665025,0.00011869,2]
[323621816,1714141845764,-920.67,0.00011869,2]
[323621817,1714141845774,-500.0,0.00011869,2]
[323621818,1714141845783,-500.0,0.00011869,2]
[323621819,1714141845792,-500.0,0.00011869,2]
[323621820,1714141845801,-500.0,0.00011869,2]
[323621821,1714141845812,-500.42641418,0.00011869,2]
[323621822,1714141845822,-500.0,0.00011869,2]
[323621823,1714141845833,-500.0,0.00011869,2]
[323621824,1714141845842,-500.0,0.00011869,2]
[323621825,1714141845852,-500.0,0.00011869,2]
[323621826,1714141845862,-580.25,0.00011869,2]
[323621827,1714141845873,-500.0,0.00011869,2]
[323621828,1714141845882,-500.0,0.00011869,2]
[323621829,1714141845893,-500.0,0.00011869,2]
[323621830,1714141845902,-502.42259762,0.00011869,2]
[323621831,1714141845911,-571.4,0.00011869,2]
[323621832,1714141845922,-500.0,0.00011869,2]
[323621833,1714141845931,-500.0,0.00011869,2]
[323621834,1714141845943,-500.0,0.00011869,2]
[323621835,1714141845953,-384.88418833,0.00011869,2]
[323621836,1714141845985,-500.0,0.00011756,2]
[323621837,1714141845995,-115.11581167,0.00011869,2]
[323621838,1714141846006,-500.0,0.00011869,2]
[323621839,1714141846016,-500.0,0.00011869,2]
[323621840,1714141846025,-500.0,0.00011869,2]
[323621841,1714141846035,-500.0,0.00011869,2]
[323621842,1714141846046,-500.0,0.00011869,2]
[323621844,1714141846058,-811.7,0.00011869,2]
[323621845,1714141846068,-500.0,0.00011869,2]
[323621846,1714141846078,-500.0,0.00011869,2]
[323621847,1714141846088,-500.0,0.00011869,2]
[323621848,1714141846098,-500.0,0.00011869,2]
[323621850,1714141846108,-1092.99,0.00011869,2]
[323621852,1714141846118,-500.0,0.00011869,2]
[323621854,1714141846128,-828.98,0.00011869,2]
[323621856,1714141846138,-500.0,0.00011869,2]
[323621858,1714141846147,-654.37,0.00011869,2]
[323621860,1714141846158,-959.77,0.00011869,2]
[323621863,1714141846167,-500.0,0.00011869,2]
[323621865,1714141846178,-841.09,0.00011869,2]
[323621867,1714141846188,-500.0,0.00011869,2]
[323621869,1714141846198,-500.0,0.00011869,2]
[323621871,1714141846209,-500.0,0.00011869,2]